fUSD/lending_fUSD_20260531
["ID","MTS","AMOUNT","RATE_DAILY","PERIOD"]
[423538524,1780203049000,-1000.0,0.00028383,15]
[423538507,1780203049000,-167.79696719,0.00028272,2]
[423538512,1780203049000,-500.0,0.00028316,2]
[423538510,1780203049000,-300.0,0.00028274,10]
[423538506,1780203049000,-171.1374224,0.00028272,2]
[423538509,1780203049000,-159.32411677,0.00028272,2]
[423538513,1780203049000,-4917.82941975,0.00028331,2]
[423538515,1780203049000,-413.61503396,0.00028331,2]
[423538517,1780203049000,-500.0,0.00028333,31]
[423538516,1780203049000,-300.0,0.00028332,11]
[423538514,1780203049000,-10259.85300746,0.00028331,2]
[423538511,1780203049000,-300.0,0.00028307,10]
[423538534,1780203050000,-338.004,0.00015841,2]
[423538535,1780203050000,-2193.198547,0.00015841,2]
[423538536,1780203050000,-963.76004824,0.00015841,2]
[423538537,1780203050000,-305.11934148,0.00015841,2]
[423538539,1780203050000,-300.99795142,0.00015841,2]
[423538540,1780203050000,-451.0,0.00015841,2]
[423538538,1780203050000,-2121.80929683,0.00015841,2]
[423538555,1780204232000,-150.0,0.00011251,2]
[423538552,1780204232000,-404.0880351,0.00010908,2]
[423538553,1780204232000,-157.05881919,0.00011047,2]
[423538554,1780204232000,-638.60596438,0.00011091,2]
[423538556,1780204232000,-1138.38,0.0001132,2]
[423538563,1780204232000,-272.78539939,0.00011708,2]
[423538559,1780204232000,-452.17345019,0.00011707,2]
[423538557,1780204232000,-158.5791956,0.00011584,2]
[423538561,1780204232000,-392.8265498,0.00011707,2]
[423538560,1780204232000,-355.00000001,0.00011707,2]
[423538558,1780204232000,-154.82,0.00011684,2]
[423538562,1780204232000,-300.0,0.00011707,2]
[423538638,1780204239000,-154.82,0.0001264,2]
[423538642,1780204239000,-1680.0,0.00012878,2]
[423538640,1780204239000,-154.82,0.00012777,2]
[423538641,1780204239000,-420.0,0.00012855,2]
[423538634,1780204239000,-177.67571892,0.00012191,2]
[423538636,1780204239000,-154.82,0.00012367,2]
[423538637,1780204239000,-154.82,0.00012504,2]
[423538633,1780204239000,-150.0,0.00012187,2]
[423538632,1780204239000,-154.82,0.00012094,2]
[423538627,1780204239000,-209.17060647,0.00011932,2]
[423538635,1780204239000,-154.82,0.0001223,2]
[423538639,1780204239000,-1138.38,0.00012735,2]
[423538644,1780204239000,-154.82,0.00012914,2]
[423538643,1780204239000,-500.0,0.00012913,2]
[423538646,1780204239000,-195.4,0.00013022,2]
[423538648,1780204239000,-500.0,0.00013461,2]
[423538647,1780204239000,-500.0,0.00013187,2]
[423538657,1780204239000,-321.46293792,0.00013698,2]
[423538652,1780204239000,-500.0,0.00013698,2]
[423538649,1780204239000,-49453.1745555,0.00013598,2]
[423538653,1780204239000,-500.0,0.00013698,2]
[423538655,1780204239000,-500.0,0.00013698,2]
[423538651,1780204239000,-303.83318809,0.00013698,2]
[423538630,1780204239000,-154.82,0.00011957,2]
[423538645,1780204239000,-255.0,0.00012923,2]
[423538629,1780204239000,-151.0,0.00011944,2]
[423538588,1780204239000,-590.1,0.00011447,2]
[423538626,1780204239000,-1300.0,0.000119,4]
[423538656,1780204239000,-500.0,0.00013698,2]
[423538592,1780204239000,-500.0,0.00011708,2]
[423538597,1780204239000,-500.0,0.00011708,2]
[423538594,1780204239000,-500.0,0.00011708,2]
[423538590,1780204239000,-227.21460061,0.00011708,2]
[423538599,1780204239000,-500.0,0.00011708,2]
[423538601,1780204239000,-500.0,0.00011708,2]
[423538612,1780204239000,-600.0,0.000118,4]
[423538613,1780204239000,-154.82,0.0001182,2]
[423538615,1780204239000,-150.0,0.00011845,2]
[423538617,1780204239000,-500.0,0.00011846,2]
[423538616,1780204239000,-500.0,0.00011846,2]
[423538618,1780204239000,-500.0,0.00011846,2]
[423538604,1780204239000,-500.0,0.00011708,2]
[423538608,1780204239000,-1026.868,0.00011708,2]
[423538606,1780204239000,-273.77698387,0.00011708,2]
[423538610,1780204239000,-159.80963633,0.00011708,2]
[423538619,1780204239000,-500.0,0.00011846,2]
[423538620,1780204239000,-500.0,0.00011846,2]
[423538621,1780204239000,-535.59455603,0.00011846,2]
[423538631,1780204239000,-297.20020296,0.00011999,2]
[423538622,1780204239000,-2000.0,0.00011847,2]
[423538623,1780204239000,-21105.30944663,0.00011847,2]
[423538625,1780204239000,-1256.0,0.00011894,2]
[423538624,1780204239000,-77982.16235337,0.00011847,2]
[423538628,1780204239000,-215.61611719,0.00011932,2]
[423538654,1780204239000,-500.0,0.00013698,2]
[423538688,1780204239000,-500.0,0.00013698,2]
[423538658,1780204239000,-500.0,0.00013698,2]
[423538694,1780204239000,-1242.35,0.00013698,2]
[423538696,1780204239000,-1242.35,0.00013698,2]
[423538697,1780204239000,-500.0,0.00013698,2]
[423538691,1780204239000,-1242.35,0.00013698,2]
[423538693,1780204239000,-1242.35,0.00013698,2]
[423538687,1780204239000,-500.0,0.00013698,2]
[423538689,1780204239000,-500.0,0.00013698,2]
[423538692,1780204239000,-1242.35,0.00013698,2]
[423538698,1780204239000,-571.58866461,0.00013698,2]
[423538695,1780204239000,-1242.35,0.00013698,2]
[423538699,1780204239000,-500.0,0.00013698,2]
[423538690,1780204239000,-565.35437327,0.00013698,2]
[423538701,1780204239000,-500.0,0.00013698,2]
[423538700,1780204239000,-502.19295882,0.00013698,2]
[423538706,1780204239000,-500.0,0.00013698,2]
[423538711,1780204239000,-1129.18,0.00013698,2]
[423538703,1780204239000,-500.0,0.00013698,2]
[423538705,1780204239000,-500.0,0.00013698,2]
[423538710,1780204239000,-1129.18,0.00013698,2]
[423538709,1780204239000,-1129.18,0.00013698,2]
[423538704,1780204239000,-500.0,0.00013698,2]
[423538708,1780204239000,-1129.18,0.00013698,2]
[423538712,1780204239000,-1129.18,0.00013698,2]
[423538650,1780204239000,-165.3798853,0.00013698,2]
[423538707,1780204239000,-1129.18,0.00013698,2]
[423538686,1780204239000,-500.0,0.00013698,2]
[423538702,1780204239000,-500.0,0.00013698,2]
[423538681,1780204239000,-500.0,0.00013698,2]
[423538659,1780204239000,-500.0,0.00013698,2]
[423538682,1780204239000,-500.0,0.00013698,2]
[423538661,1780204239000,-500.0,0.00013698,2]
[423538672,1780204239000,-500.0,0.00013698,2]
[423538660,1780204239000,-500.0,0.00013698,2]
[423538671,1780204239000,-500.0,0.00013698,2]
[423538662,1780204239000,-500.0,0.00013698,2]
[423538663,1780204239000,-500.0,0.00013698,2]
[423538668,1780204239000,-500.0,0.00013698,2]
[423538669,1780204239000,-500.0,0.00013698,2]
[423538665,1780204239000,-460.58248487,0.00013698,2]
[423538667,1780204239000,-500.0,0.00013698,2]
[423538666,1780204239000,-176.47630635,0.00013698,2]
[423538664,1780204239000,-500.0,0.00013698,2]
[423538670,1780204239000,-500.0,0.00013698,2]
[423538677,1780204239000,-500.0,0.00013698,2]
[423538679,1780204239000,-500.0,0.00013698,2]
[423538680,1780204239000,-500.0,0.00013698,2]
[423538675,1780204239000,-500.0,0.00013698,2]
[423538678,1780204239000,-288.82381834,0.00013698,2]
[423538684,1780204239000,-500.0,0.00013698,2]
[423538683,1780204239000,-500.0,0.00013698,2]
[423538676,1780204239000,-500.0,0.00013698,2]
[423538673,1780204239000,-500.0,0.00013698,2]
[423538674,1780204239000,-500.0,0.00013698,2]
[423538685,1780204239000,-193.70131228,0.00013698,2]
[423538752,1780204240000,-548.06748818,0.00013699,2]
[423538758,1780204240000,-548.06748818,0.00013699,2]
[423538753,1780204240000,-548.06748818,0.00013699,2]
[423538763,1780204240000,-548.06748818,0.00013699,2]
[423538754,1780204240000,-548.06748818,0.00013699,2]
[423538755,1780204240000,-548.06748818,0.00013699,2]
[423538745,1780204240000,-548.06748818,0.00013699,2]
[423538747,1780204240000,-548.06748818,0.00013699,2]
[423538746,1780204240000,-548.06748818,0.00013699,2]
[423538744,1780204240000,-548.06748818,0.00013699,2]
[423538748,1780204240000,-548.06748818,0.00013699,2]
[423538756,1780204240000,-548.06748818,0.00013699,2]
[423538749,1780204240000,-548.06748818,0.00013699,2]
[423538757,1780204240000,-548.06748818,0.00013699,2]
[423538771,1780204240000,-548.06748818,0.00013699,2]
[423538762,1780204240000,-548.06748818,0.00013699,2]
[423538759,1780204240000,-548.06748818,0.00013699,2]
[423538760,1780204240000,-548.06748818,0.00013699,2]
[423538764,1780204240000,-548.06748818,0.00013699,2]
[423538768,1780204240000,-548.06748818,0.00013699,2]
[423538767,1780204240000,-548.06748818,0.00013699,2]
[423538766,1780204240000,-548.06748818,0.00013699,2]
[423538765,1780204240000,-548.06748818,0.00013699,2]
[423538776,1780204240000,-548.06748818,0.00013699,2]
[423538769,1780204240000,-548.06748818,0.00013699,2]
[423538772,1780204240000,-548.06748818,0.00013699,2]
[423538740,1780204240000,-548.06748818,0.00013699,2]
[423538773,1780204240000,-548.06748818,0.00013699,2]
[423538761,1780204240000,-548.06748818,0.00013699,2]
[423538751,1780204240000,-548.06748818,0.00013699,2]
[423538714,1780204240000,-151.0,0.00013699,2]
[423538750,1780204240000,-548.06748818,0.00013699,2]
[423538774,1780204240000,-548.06748818,0.00013699,2]
[423538717,1780204240000,-151.0,0.00013699,2]
[423538716,1780204240000,-151.0,0.00013699,2]
[423538715,1780204240000,-151.0,0.00013699,2]
[423538713,1780204240000,-505.46137197,0.00013698,2]
[423538723,1780204240000,-151.0,0.00013699,2]
[423538724,1780204240000,-162.917968,0.00013699,2]
[423538719,1780204240000,-151.0,0.00013699,2]
[423538722,1780204240000,-151.0,0.00013699,2]
[423538718,1780204240000,-151.0,0.00013699,2]
[423538720,1780204240000,-151.0,0.00013699,2]
[423538721,1780204240000,-151.0,0.00013699,2]
[423538725,1780204240000,-200.0,0.00013699,2]
[423538730,1780204240000,-548.06748818,0.00013699,2]
[423538729,1780204240000,-548.06748818,0.00013699,2]
[423538728,1780204240000,-548.06748818,0.00013699,2]
[423538736,1780204240000,-548.06748818,0.00013699,2]
[423538726,1780204240000,-548.06748818,0.00013699,2]
[423538732,1780204240000,-548.06748818,0.00013699,2]
[423538727,1780204240000,-548.06748818,0.00013699,2]
[423538731,1780204240000,-548.06748818,0.00013699,2]
[423538737,1780204240000,-548.06748818,0.00013699,2]
[423538738,1780204240000,-548.06748818,0.00013699,2]
[423538734,1780204240000,-548.06748818,0.00013699,2]
[423538733,1780204240000,-548.06748818,0.00013699,2]
[423538735,1780204240000,-548.06748818,0.00013699,2]
[423538742,1780204240000,-548.06748818,0.00013699,2]
[423538741,1780204240000,-548.06748818,0.00013699,2]
[423538739,1780204240000,-548.06748818,0.00013699,2]
[423538743,1780204240000,-548.06748818,0.00013699,2]
[423538770,1780204240000,-548.06748818,0.00013699,2]
[423538806,1780204240000,-534.36580098,0.00013699,2]
[423538779,1780204240000,-534.36580098,0.00013699,2]
[423538809,1780204240000,-534.36580098,0.00013699,2]
[423538811,1780204240000,-534.36580095,0.00013699,2]
[423538812,1780204240000,-534.36580095,0.00013699,2]
[423538817,1780204240000,-500.0,0.00013735,2]
[423538818,1780204240000,-303.96,0.00013815,2]
[423538815,1780204240000,-235.0,0.00013699,2]
[423538827,1780204240000,-2000.0,0.00014153,2]
[423538828,1780204240000,-2351.0,0.00014165,2]
[423538820,1780204240000,-2812.95907578,0.00013841,2]
[423538826,1780204240000,-1138.38,0.0001415,2]
[423538819,1780204240000,-1000.0,0.0001382,2]
[423538816,1780204240000,-235.0,0.00013699,2]
[423538825,1780204240000,-587.0,0.00014117,2]
[423538807,1780204240000,-534.36580098,0.00013699,2]
[423538824,1780204240000,-433.0,0.00014096,2]
[423538822,1780204240000,-2000.0,0.000139,5]
[423538829,1780204240000,-166.66,0.00014177,2]
[423538833,1780204240000,-166.66,0.0001447,2]
[423538831,1780204240000,-555.70477392,0.0001434,2]
[423538838,1780204240000,-14090.15774791,0.0001499,2]
[423538834,1780204240000,-2500.0,0.00014471,2]
[423538835,1780204240000,-500.0,0.00014557,2]
[423538836,1780204240000,-166.66,0.00014762,2]
[423538832,1780204240000,-250.0,0.00014413,2]
[423538837,1780204240000,-500.0,0.00014831,2]
[423538840,1780204240000,-500.0,0.00015105,2]
[423538830,1780204240000,-500.0,0.00014283,2]
[423538777,1780204240000,-548.06748818,0.00013699,2]
[423538823,1780204240000,-500.0,0.00014009,2]
[423538808,1780204240000,-534.36580098,0.00013699,2]
[423538821,1780204240000,-166.66,0.00013885,2]
[423538813,1780204240000,-534.36580095,0.00013699,2]
[423538810,1780204240000,-534.36580095,0.00013699,2]
[423538787,1780204240000,-534.36580098,0.00013699,2]
[423538788,1780204240000,-534.36580098,0.00013699,2]
[423538781,1780204240000,-534.36580098,0.00013699,2]
[423538778,1780204240000,-548.06748818,0.00013699,2]
[423538786,1780204240000,-534.36580098,0.00013699,2]
[423538784,1780204240000,-534.36580098,0.00013699,2]
[423538780,1780204240000,-534.36580098,0.00013699,2]
[423538783,1780204240000,-534.36580098,0.00013699,2]
[423538785,1780204240000,-534.36580098,0.00013699,2]
[423538782,1780204240000,-534.36580098,0.00013699,2]
[423538791,1780204240000,-534.36580098,0.00013699,2]
[423538793,1780204240000,-534.36580098,0.00013699,2]
[423538795,1780204240000,-534.36580098,0.00013699,2]
[423538801,1780204240000,-534.36580098,0.00013699,2]
[423538789,1780204240000,-534.36580098,0.00013699,2]
[423538839,1780204240000,-166.66,0.00015054,2]
[423538814,1780204240000,-534.36580094,0.00013699,2]
[423538804,1780204240000,-534.36580098,0.00013699,2]
[423538803,1780204240000,-534.36580098,0.00013699,2]
[423538790,1780204240000,-534.36580098,0.00013699,2]
[423538802,1780204240000,-534.36580098,0.00013699,2]
[423538799,1780204240000,-534.36580098,0.00013699,2]
[423538805,1780204240000,-534.36580098,0.00013699,2]
[423538800,1780204240000,-534.36580098,0.00013699,2]
[423538797,1780204240000,-534.36580098,0.00013699,2]
[423538796,1780204240000,-534.36580098,0.00013699,2]
[423538794,1780204240000,-534.36580098,0.00013699,2]
[423538792,1780204240000,-534.36580098,0.00013699,2]
[423538798,1780204240000,-534.36580098,0.00013699,2]
[423538884,1780204241000,-590.1,0.00016026,2]
[423538886,1780204241000,-1252.0,0.00016785,2]
[423538885,1780204241000,-1493.1,0.00016438,2]
[423538882,1780204241000,-2000.0,0.00015922,2]
[423538879,1780204241000,-1129.18,0.0001574,2]
[423538871,1780204241000,-1242.35,0.0001574,2]
[423538880,1780204241000,-815131.6766,0.00015741,2]
[423538872,1780204241000,-500.0,0.0001574,2]
[423538875,1780204241000,-500.0,0.0001574,2]
[423538876,1780204241000,-1129.18,0.0001574,2]
[423538873,1780204241000,-500.0,0.0001574,2]
[423538890,1780204241000,-999.99,0.00016922,2]
[423538881,1780204241000,-2700.0,0.000159,5]
[423538889,1780204241000,-9999.99,0.00016922,2]
[423538891,1780204241000,-150.99,0.00016922,2]
[423538888,1780204241000,-9999.99,0.00016922,2]
[423538887,1780204241000,-9999.99,0.00016922,2]
[423538892,1780204241000,-206.11,0.00016922,4]
[423538899,1780204241000,-238.90847261,0.00018,2]
[423538896,1780204241000,-49453.1745555,0.0001725,2]
[423538898,1780204241000,-2000.0,0.00017691,2]
[423538897,1780204241000,-3527.663,0.00017364,2]
[423538900,1780204241000,-500.0,0.00018217,2]
[423538893,1780204241000,-1138.38,0.00016981,2]
[423538902,1780204241000,-303.96,0.00018253,2]
[423538901,1780204241000,-500.0,0.00018217,2]
[423538894,1780204241000,-4609.0,0.0001714,2]
[423538895,1780204241000,-63651.92896536,0.0001724,2]
[423538883,1780204241000,-566.7554006,0.00015927,2]
[423538870,1780204241000,-1242.35,0.0001574,2]
[423538842,1780204241000,-500.0,0.00015379,2]
[423538869,1780204241000,-1242.35,0.0001574,2]
[423538852,1780204241000,-49453.1745555,0.00015424,2]
[423538847,1780204241000,-500.0,0.00015423,2]
[423538853,1780204241000,-479.936109,0.00015426,2]
[423538843,1780204241000,-736.0,0.00015387,2]
[423538844,1780204241000,-384.84090333,0.00015423,2]
[423538845,1780204241000,-186.46246112,0.00015423,2]
[423538846,1780204241000,-500.0,0.00015423,2]
[423538841,1780204241000,-166.66,0.00015347,2]
[423538850,1780204241000,-500.0,0.00015423,2]
[423538848,1780204241000,-477.89500224,0.00015423,2]
[423538851,1780204241000,-500.0,0.00015423,2]
[423538849,1780204241000,-285.64038729,0.00015423,2]
[423538854,1780204241000,-1138.38,0.00015566,2]
[423538856,1780204241000,-63651.92896543,0.00015641,2]
[423538864,1780204241000,-500.0,0.0001574,2]
[423538857,1780204241000,-500.0,0.00015653,2]
[423538859,1780204241000,-500.0,0.0001574,2]
[423538860,1780204241000,-500.0,0.0001574,2]
[423538865,1780204241000,-500.0,0.0001574,2]
[423538863,1780204241000,-500.0,0.0001574,2]
[423538858,1780204241000,-151.0,0.00015738,2]
[423538855,1780204241000,-3292.0,0.00015582,2]
[423538861,1780204241000,-500.0,0.0001574,2]
[423538862,1780204241000,-500.0,0.0001574,2]
[423538867,1780204241000,-504.85227868,0.0001574,2]
[423538868,1780204241000,-1242.35,0.0001574,2]
[423538877,1780204241000,-1129.18,0.0001574,2]
[423538866,1780204241000,-293.99939732,0.0001574,2]
[423538878,1780204241000,-1129.18,0.0001574,2]
[423538874,1780204241000,-500.0,0.0001574,2]
[423538908,1780204241000,-63651.92896536,0.00018839,2]
[423538912,1780204241000,-500.0,0.00019326,2]
[423538911,1780204241000,-277.68664327,0.00019178,2]
[423538937,1780204241000,-151.0,0.00020354,2]
[423538940,1780204241000,-151.0,0.00020354,2]
[423538943,1780204241000,-151.0,0.00020354,2]
[423538939,1780204241000,-151.0,0.00020354,2]
[423538945,1780204241000,-151.0,0.00020354,2]
[423538955,1780204241000,-500.0,0.0002038,2]
[423538956,1780204241000,-1129.18,0.0002038,2]
[423538947,1780204241000,-151.0,0.00020354,2]
[423538944,1780204241000,-151.0,0.00020354,2]
[423538949,1780204241000,-151.0,0.00020354,2]
[423538950,1780204241000,-151.0,0.00020354,2]
[423538952,1780204241000,-151.0,0.00020354,2]
[423538954,1780204241000,-1242.35,0.0002038,2]
[423538938,1780204241000,-151.0,0.00020354,2]
[423538948,1780204241000,-151.0,0.00020354,2]
[423538951,1780204241000,-151.0,0.00020354,2]
[423538953,1780204241000,-490.7648361,0.0002038,2]
[423538958,1780204241000,-63651.92896536,0.00020437,2]
[423538965,1780204241000,-557.0,0.00021,2]
[423538962,1780204241000,-49453.1745555,0.00020901,2]
[423538957,1780204241000,-1493.1,0.00020381,2]
[423538964,1780204241000,-160.2572065,0.00020961,2]
[423538963,1780204241000,-2157.14243826,0.00020902,2]
[423538960,1780204241000,-340.4992661,0.00020727,2]
[423538967,1780204241000,-1260.0,0.00021,2]
[423538959,1780204241000,-500.0,0.00020503,2]
[423538961,1780204241000,-191.34,0.000208,2]
[423538910,1780204241000,-49453.1745555,0.00019075,2]
[423538946,1780204241000,-151.0,0.00020354,2]
[423538942,1780204241000,-2080.17592889,0.00020354,2]
[423538966,1780204241000,-185.0,0.00021,2]
[423538936,1780204241000,-151.0,0.00020354,2]
[423538935,1780204241000,-151.0,0.00020354,2]
[423538913,1780204241000,-500.0,0.00019452,2]
[423538914,1780204241000,-2000.0,0.0001946,2]
[423538915,1780204241000,-500.0,0.00019906,2]
[423538904,1780204241000,-1493.1,0.0001841,2]
[423538906,1780204241000,-177.6757189,0.00018723,2]
[423538907,1780204241000,-500.0,0.00018764,2]
[423538905,1780204241000,-500.0,0.00018411,2]
[423538903,1780204241000,-803.0,0.00018313,2]
[423538916,1780204241000,-557.0,0.0002,2]
[423538921,1780204241000,-233.0,0.0002,2]
[423538917,1780204241000,-20412.0,0.0002,2]
[423538918,1780204241000,-185.0,0.0002,2]
[423538922,1780204241000,-341.0,0.0002,2]
[423538909,1780204241000,-1998.0,0.00018854,2]
[423538923,1780204241000,-154.0,0.0002,2]
[423538941,1780204241000,-151.0,0.00020354,2]
[423538933,1780204241000,-151.0,0.00020354,2]
[423538934,1780204241000,-151.0,0.00020354,2]
[423538932,1780204241000,-151.0,0.00020354,2]
[423538926,1780204241000,-243.0,0.0002,2]
[423538930,1780204241000,-220.0,0.0002,2]
[423538931,1780204241000,-235.0,0.0002,2]
[423538920,1780204241000,-722.0,0.0002,2]
[423538928,1780204241000,-811.0,0.0002,2]
[423538925,1780204241000,-437.0,0.0002,2]
[423538927,1780204241000,-152.0,0.0002,2]
[423538929,1780204241000,-434.0,0.0002,2]
[423538924,1780204241000,-497.0,0.0002,2]
[423538919,1780204241000,-1260.0,0.0002,2]
[423539005,1780204242000,-500.0,0.00022405,2]
[423539011,1780204242000,-578.20924308,0.00022714,2]
[423539009,1780204242000,-303.96,0.00022692,2]
[423539018,1780204242000,-185.0,0.00023,2]
[423539008,1780204242000,-2405.55389863,0.00022546,2]
[423539003,1780204242000,-63651.92896536,0.00022036,2]
[423539002,1780204242000,-220.0,0.00022,2]
[423539000,1780204242000,-152.0,0.00022,2]
[423538999,1780204242000,-243.0,0.00022,2]
[423538998,1780204242000,-437.0,0.00022,2]
[423539001,1780204242000,-434.0,0.00022,2]
[423539006,1780204242000,-285.1,0.00022466,2]
[423539016,1780204242000,-755.203434,0.00022966,14]
[423539012,1780204242000,-207.76482817,0.00022714,2]
[423539007,1780204242000,-200.0,0.00022545,2]
[423539017,1780204242000,-557.0,0.00023,2]
[423539014,1780204242000,-857.73993207,0.00022714,2]
[423539015,1780204242000,-49453.1745555,0.00022727,2]
[423539013,1780204242000,-1428.38747117,0.00022714,2]
[423539020,1780204242000,-233.0,0.00023,2]
[423539031,1780204242000,-1123.99999999,0.0002323,2]
[423539030,1780204242000,-2494.55939288,0.00023094,2]
[423539032,1780204242000,-181.08010149,0.00023262,2]
[423539026,1780204242000,-152.0,0.00023,2]
[423539019,1780204242000,-1260.0,0.00023,2]
[423539023,1780204242000,-497.0,0.00023,2]
[423538997,1780204242000,-497.0,0.00022,2]
[423539010,1780204242000,-174.61919141,0.00022714,2]
[423538996,1780204242000,-154.0,0.00022,2]
[423538985,1780204242000,-500.0,0.00021753,2]
[423538993,1780204242000,-1260.0,0.00022,2]
[423539021,1780204242000,-341.0,0.00023,2]
[423538968,1780204242000,-233.0,0.00021,2]
[423538970,1780204242000,-154.0,0.00021,2]
[423538969,1780204242000,-341.0,0.00021,2]
[423538980,1780204242000,-2236.95670847,0.0002145,2]
[423538971,1780204242000,-497.0,0.00021,2]
[423538973,1780204242000,-243.0,0.00021,2]
[423538975,1780204242000,-434.0,0.00021,2]
[423538972,1780204242000,-437.0,0.00021,2]
[423538978,1780204242000,-1112.70232125,0.00021137,2]
[423538979,1780204242000,-2000.0,0.0002123,2]
[423538974,1780204242000,-152.0,0.00021,2]
[423538977,1780204242000,-500.0,0.00021119,2]
[423538976,1780204242000,-220.0,0.00021,2]
[423538981,1780204242000,-160.0,0.00021668,2]
[423538983,1780204242000,-537.110862,0.00021668,2]
[423538984,1780204242000,-500.0,0.00021752,2]
[423538982,1780204242000,-348.555431,0.00021668,2]
[423538990,1780204242000,-3394.92,0.00022,2]
[423538989,1780204242000,-2319.72410669,0.00021998,2]
[423538988,1780204242000,-200.0,0.00021918,2]
[423538987,1780204242000,-5000.0,0.00021918,2]
[423538986,1780204242000,-20148.32,0.00021754,2]
[423538992,1780204242000,-185.0,0.00022,2]
[423538991,1780204242000,-557.0,0.00022,2]
[423538994,1780204242000,-233.0,0.00022,2]
[423539004,1780204242000,-1493.1,0.00022353,2]
[423538995,1780204242000,-341.0,0.00022,2]
[423539024,1780204242000,-437.0,0.00023,2]
[423539078,1780204242000,-150.0,0.00024929,4]
[423539025,1780204242000,-243.0,0.00023,2]
[423539062,1780204242000,-1493.1,0.00024324,2]
[423539060,1780204242000,-304.37,0.00024174,2]
[423539059,1780204242000,-8589.84,0.00024174,2]
[423539061,1780204242000,-2682.57183977,0.0002419,2]
[423539064,1780204242000,-1592.87721992,0.00024358,2]
[423539063,1780204242000,-194.72792766,0.00024358,2]
[423539069,1780204242000,-2781.82699784,0.00024738,2]
[423539079,1780204242000,-561.0,0.00025,2]
[423539072,1780204242000,-226.08776067,0.00024906,2]
[423539071,1780204242000,-200.0,0.00024901,2]
[423539068,1780204242000,-385.89,0.00024658,2]
[423539084,1780204242000,-345.96941953,0.00025,2]
[423539070,1780204242000,-3336.44,0.00024882,7]
[423539076,1780204242000,-150.0,0.00024929,4]
[423539074,1780204242000,-150.0,0.00024929,4]
[423539075,1780204242000,-150.0,0.00024929,4]
[423539073,1780204242000,-1651.81367706,0.00024906,2]
[423539077,1780204242000,-150.0,0.00024929,4]
[423539080,1780204242000,-195.0,0.00025,2]
[423539082,1780204242000,-410.85149563,0.00025,2]
[423539089,1780204242000,-221.96743013,0.00025,2]
[423539081,1780204242000,-1274.0,0.00025,2]
[423539088,1780204242000,-439.0,0.00025,2]
[423539085,1780204242000,-506.20242509,0.00025,2]
[423539087,1780204242000,-260.62575589,0.00025,2]
[423539086,1780204242000,-439.2771525,0.00025,2]
[423539083,1780204242000,-249.32530215,0.00025,2]
[423539067,1780204242000,-1000.0,0.00024658,2]
[423539066,1780204242000,-49453.1745555,0.00024553,2]
[423539022,1780204242000,-154.94064324,0.00023,2]
[423539058,1780204242000,-1427.79,0.00024174,2]
[423539056,1780204242000,-1667.94,0.00024174,2]
[423539029,1780204242000,-500.0,0.00023077,2]
[423539028,1780204242000,-220.0,0.00023,2]
[423539033,1780204242000,-1481.2378076,0.00023262,2]
[423539034,1780204242000,-200.0,0.0002333,2]
[423539038,1780204242000,-500.0,0.00023726,2]
[423539037,1780204242000,-2586.85809042,0.00023642,2]
[423539044,1780204242000,-1260.0,0.00024,2]
[423539039,1780204242000,-500.0,0.00023769,2]
[423539040,1780204242000,-187.78006524,0.0002381,2]
[423539035,1780204242000,-18893.6,0.00023507,2]